Workbook

Sheet Начало
B1: ЗА ТОЗИ ШАБЛОН
B2: Използвайте тази работна книга "Бюджет за събитие", за да проследявате възникналите разходи и спечелените приходи от събитие.
B3: Попълнете име на събитие и въведете данни в таблиците в работния лист "Разходи" и работния лист "Приходи".
B4: Общите разходи и общите приходи се изчисляват автоматично.
B5: Резюмето и диаграмата за печалбата и загубата се актуализират автоматично в работния лист "Резюме за печалбата и загубата".
B6: Забележка:
B7: Допълнителни инструкции са предоставени в колона A във всеки работен лист. Този текст е скрит нарочно. За да премахнете текста, изберете колона А, след което изберете DELETE.
B8: За да научите повече за таблиците, натиснете SHIFT и след това F10 в таблица, изберете опцията ТАБЛИЦА, след което изберете АЛТЕРНАТИВЕН ТЕКСТ

Sheet Разходи
A1: Въведете очакваните и действителните разходи за всяка категория в съответните таблици в този работен лист и име на събитие в клетка D1, за да персонализирате заглавието на този и на другите работни листове. Подзаглавието на този работен лист е в клетка H1. Полезни инструкции как да използвате този работен лист, можете да намерите в клетките в тази колона. Следващата инструкция е в клетка A3. | B1: Бюджет за събитие за | D1: Име на събитие | H1: РАЗХОДИ
A3: Етикетът "Общо разходи" е в клетката вдясно, етикетът "Очаквани" е в клетка G3 и етикетът "Действителни" е в клетка H3. | B3: ОБЩИ РАЗХОДИ | G3: Очаквани | H3: Действителни
A4: Общите очаквани разходи в клетка G4 и общите действителни разходи в H4 се изчисляват автоматично. Следващата инструкция е в клетка A6. | G4: =SUM(C11,C19,C25,C32,G11,G19,G24) -> 882.00 лв. | H4: =SUM(D11,D19,D25,D32,H11,H19,H24) -> 302.00 лв.
A6: Въведете разходите за място в таблицата, която започва от клетката вдясно, и разходите за "Почерпка" в таблицата, която започва от клетка F6. Следващата инструкция е в клетка A13. | B6: Място | C6: Очаквани | D6: Действителни | F6: Почерпка | G6: Очаквани | H6: Действителни
B7: Такси за стая/зала | C7: 500.00 лв. | F7: Храна
B8: Персонал на мястото | F8: Напитки | G8: 20.00 лв.
B9: Оборудване | F9: Покривки | H9: 20.00 лв.
B10: Маси и столове | F10: Персонал и бакшиш
B11: Общо | C11: =SUBTOTAL(109,РазходиМясто[Очаквани]) -> 500.00 лв. | D11: =SUBTOTAL(103,РазходиМясто[Действителни]) -> 0.00 лв. | F11: Общо | G11: =SUBTOTAL(109,РазходиПочерпка[Очаквани]) -> 20.00 лв. | H11: =SUBTOTAL(103,РазходиПочерпка[Действителни]) -> 1.00 лв.
A13: Въведете разходите за "Украса" в таблицата, която започва от клетката вдясно, и разходите за "Програма" в таблицата, която започва от клетка F13. Следващата инструкция е в клетка A21. | B13: Украса | C13: Очаквани | D13: Действителни | F13: Програма | G13: Очаквани | H13: Действителни
B14: Цветя | C14: 200.00 лв. | D14: 300.00 лв. | F14: Изпълнители
B15: Свещи | F15: Лектори | G15: 30.00 лв.
B16: Осветление | F16: Пътувания
B17: Балони | F17: Хотел
B18: Хартиени консумативи | F18: Други
B19: Общо | C19: =SUBTOTAL(109,РазходиУкраса[Очаквани]) -> 200.00 лв. | D19: =SUBTOTAL(109,РазходиУкраса[Действителни]) -> 300.00 лв. | F19: Общо | G19: =SUBTOTAL(109,РазходиПрограма[Очаквани]) -> 30.00 лв. | H19: =SUBTOTAL(103,РазходиПрограма[Действителни]) -> 0.00 лв.
A21: Въведете разходите за "Реклама" в таблицата, която започва от клетката вдясно, и разходите за "Награди" в таблицата, която започва от клетка F21. Следващата инструкция е в клетка A27. | B21: Реклама | C21: Очаквани | D21: Действителни | F21: Награди | G21: Очаквани | H21: Действителни
B22: Графични материали | F22: Ленти/почетни значки/трофеи
B23: Копирни услуги/печат | C23: 20.00 лв. | F23: Подаръци | G23: 100.00 лв.
B24: Пощенски разходи | F24: Общо | G24: =SUBTOTAL(109,РазходиНагради[Очаквани]) -> 100.00 лв. | H24: =SUBTOTAL(103,РазходиНагради[Действителни]) -> 0.00 лв.
B25: Общо | C25: =SUBTOTAL(109,РазходиРеклама[Очаквани]) -> 20.00 лв. | D25: =SUBTOTAL(103,РазходиРеклама[Действителни]) -> 0.00 лв.
A27: Въведете разходите за "Други" в таблицата, която започва от клетката вдясно. | B27: Разни | C27: Очаквано | D27: Действителни
B28: Телефон | D28: 13.00 лв.
B29: Транспорт | C29: 12.00 лв.
B30: Канцеларски материали
B31: Факс услуги
B32: Общо | C32: =SUBTOTAL(109,РазходиДруги[Очаквано]) -> 12.00 лв. | D32: =SUBTOTAL(103,РазходиДруги[Действителни]) -> 1.00 лв.

Sheet Приходи
A1: Въведете очакваните и действителните приходи за всяка категория в съответните таблици в този работен лист. Заглавието на този работен лист се актуализира автоматично в клетката вдясно. Подзаглавието е в клетка G1. Полезни инструкции как да използвате този работен лист, можете да намерите в клетките в тази колона. Следващата инструкция е в клетка A3. | B1: =Разходи!B1 -> Бюджет за събитие за | D1: =Разходи!D1 -> Име на събитие | G1: ПРИХОДИ
A3: Етикетът "Приходи" е в клетката вдясно, етикетът "Очаквани" е в клетка F3, а етикетът "Действителни" е в клетка G3. | B3: ОБЩО ПРИХОДИ | F3: Очаквани | G3: Действителни
A4: Общите очаквани приходи се изчисляват автоматично в клетка F4, а общите действителни приходи – в G4. | F4: =SUM(Вход[[#Totals],[Очаквани приходи]],РекламиВПрограмата[[#Totals],[Очаквани приходи]],ИзложителиИДоставчици[[#Totals],[Очаквани приходи]],РазпродажбаНаАртикули[[#Totals],[Очаквани приходи]]) -> 1,936.00 лв. | G4: =SUM(Вход[[#Totals],[Действителни приходи]],РекламиВПрограмата[[#Totals],[Действителни приходи]],ИзложителиИДоставчици[[#Totals],[Действителни приходи]],РазпродажбаНаАртикули[[#Totals],[Действителни приходи]]) -> 1,831.00 лв.
A5: Етикетът за "Такси за вход" е в клетката вдясно. | B5: ТАКСИ ЗА ВХОД
A6: Въведете очакван и действителен брой такси за вход с цени на билетите в таблицата, започвайки от клетката вдясно. Очакваните и действителните приходи от таксите за вход се изчисляват автоматично. Следващата инструкция е в клетка A11. | B6: Очакван № | C6: Действителен № | D6: Тип | E6: Цена | F6: Очаквани приходи | G6: Действителни приходи
B7: 300 | C7: 278 | D7: Възрастни @ | E7: 5.00 лв. | F7: =B7*E7 -> 1,500.00 лв. | G7: =C7*E7 -> 1,390.00 лв.
B8: 197 | C8: 195 | D8: Деца @ | E8: 2.00 лв. | F8: =B8*E8 -> 394.00 лв. | G8: =C8*E8 -> 390.00 лв.
B9: 42 | C9: 51 | D9: Други @ | E9: 1.00 лв. | F9: =B9*E9 -> 42.00 лв. | G9: =C9*E9 -> 51.00 лв.
B10: Общо | F10: =SUBTOTAL(109,Вход[Очаквани приходи]) -> 1,936.00 лв. | G10: =SUBTOTAL(109,Вход[Действителни приходи]) -> 1,831.00 лв.
A11: Етикетът за "Реклами в програмата" е в клетката вдясно. | B11: РЕКЛАМИ В ПРОГРАМАТА
A12: Въведете очакван и действителен брой реклами в програмата с цени на рекламите в таблицата, започвайки от клетката вдясно. Очакваните и действителните приходи от реклами се изчисляват автоматично. Следващата инструкция е в клетка A17. | B12: Очакван № | C12: Действителен № | D12: Тип | E12: Цена | F12: Очаквани приходи | G12: Действителни приходи
B13: 12 | D13: Титулни страници @ | F13: =B13*E13 -> 0.00 лв. | G13: =C13*E13 -> 0.00 лв.
C14: 158 | D14: Половин страници @ | F14: =B14*E14 -> 0.00 лв. | G14: =C14*E14 -> 0.00 лв.
B15: 4 | D15: Четвърт страници @ | F15: =B15*E15 -> 0.00 лв. | G15: =C15*E15 -> 0.00 лв.
B16: Общо | F16: =SUBTOTAL(109,РекламиВПрограмата[Очаквани приходи]) -> 0.00 лв. | G16: =SUBTOTAL(109,РекламиВПрограмата[Действителни приходи]) -> 0.00 лв.
A17: Етикетът за "Участници в изложбата или доставчици" е в клетката вдясно. | B17: УЧАСТНИЦИ В ИЗЛОЖБАТА/ДОСТАВЧИЦИ
A18: Въведете очакван и действителен брой участници в изложбата и доставчици и цени за щанд в таблицата, започвайки от клетката вдясно. Очакваните и действителните приходи се изчисляват автоматично. Следващата инструкция е в клетка A23. | B18: Очакван № | C18: Действителен № | D18: Тип | E18: Цена | F18: Очаквани приходи | G18: Действителни приходи
B19: 23 | D19: Големи щандове @ | F19: =B19*E19 -> 0.00 лв. | G19: =C19*E19 -> 0.00 лв.
B20: 354 | D20: Средни щандове @ | F20: =B20*E20 -> 0.00 лв. | G20: =C20*E20 -> 0.00 лв.
B21: 56 | D21: Малки щандове @ | F21: =B21*E21 -> 0.00 лв. | G21: =C21*E21 -> 0.00 лв.
B22: Общо | F22: =SUBTOTAL(109,ИзложителиИДоставчици[Очаквани приходи]) -> 0.00 лв. | G22: =SUBTOTAL(109,ИзложителиИДоставчици[Действителни приходи]) -> 0.00 лв.
A23: Етикетът за "Разпродажба на артикули" е в клетката вдясно. | B23: РАЗПРОДАЖБА НА АРТИКУЛИ
A24: Въведете очакван и действителен брой продадени артикули и цени на артикулите в таблицата, започвайки от клетката вдясно. Очакваните и действителните приходи се изчисляват автоматично. | B24: Очакван № | C24: Действителен № | D24: Тип | E24: Цена | F24: Очаквани приходи | G24: Действителни приходи
D25: Артикули @ | F25: =B25*E25 -> 0.00 лв. | G25: =C25*E25 -> 0.00 лв.
B26: 123 | D26: Артикули @ | F26: =B26*E26 -> 0.00 лв. | G26: =C26*E26 -> 0.00 лв.
D27: Артикули @ | F27: =B27*E27 -> 0.00 лв. | G27: =C27*E27 -> 0.00 лв.
B28: 13 | D28: Артикули @ | F28: =B28*E28 -> 0.00 лв. | G28: =C28*E28 -> 0.00 лв.
B29: Общо | F29: =SUBTOTAL(109,РазпродажбаНаАртикули[Очаквани приходи]) -> 0.00 лв. | G29: =SUBTOTAL(109,РазпродажбаНаАртикули[Действителни приходи]) -> 0.00 лв.

Sheet Резюме за печалбата и загубата
A1: Резюмето и диаграмата за печалбата и загубата, показващи общите приходи и разходи, се актуализират автоматично в този работен лист. Заглавието на този работен лист се актуализира автоматично в клетката вдясно. Подзаглавието е в клетка G1 и G2. Полезни инструкции как да използвате този работен лист, можете да намерите в клетките в тази колона. Следващата инструкция е в клетка A3. | B1: =Разходи!B1 -> Бюджет за събитие за | D1: =Разходи!D1 -> Име на събитие | G1: РЕЗЮМЕ НА ПЕЧАЛБА
G2: И ЗАГУБА
A3: Стълбовидната диаграма, която сравнява очакваните приходи и разходи и действителните приходи и разходи, е в клетка E3. | E3: Стълбовидната диаграма, която показва сравнение на очакваните приходи и разходи и действителните приходи и разходи, е в тази клетка.
A4: Таблицата "Резюме", която започва от клетката вдясно, се актуализира автоматично. Следващата инструкция е в клетка A8. | B4: Общо | C4: Очаквано | D4: Действителни
B5: Общо приходи | C5: =Приходи!F10 -> 1,936.00 лв. | D5: =Приходи!F4 -> 1,936.00 лв.
B6: Общо разходи | C6: =Разходи!G4 -> 882.00 лв. | D6: =Разходи!H4 -> 302.00 лв.
A8: Общата очаквана печалба или загуба се изчислява автоматично в клетка C8, а общата действителна печалба или загуба – в клетка D8. | B8: Общо печалба (или загуба) | C8: =C5-C6 -> 1,054.00 лв. | D8: =D5-D6 -> 1,634.00 лв.
